bitfinex/quotes_ETHUSD_20251111
["timestamp","ask_amount","ask_price","bid_price","bid_amount"]
[1762843220525,0.68,3558.9,3558.8,3.37193891]
[1762843221890,1.134,3558.9,3558.4,0.3618882]
[1762843222090,1.134,3558.9,3558.5,2.81017282]
[1762843222296,0.68,3558.9,3558.7,2.80998342]
[1762843223101,0.667,3558.8,3558.7,2.80998342]
[1762843224224,0.012,3558.9,3558.6,2.81007299]
[1762843224525,0.012,3558.9,3558.7,2.83811503]
[1762843224731,0.012,3558.9,3558.6,0.59822108]
[1762843224732,0.012,3558.9,3558.8,2.80993593]
[1762843224928,0.678,3558.9,3558.8,2.80993593]
[1762843227621,2.0752,3558.9,3558.8,2.80993593]
[1762843229433,1.4092,3558.9,3558.8,2.80993593]
[1762843229633,2.0752,3558.9,3558.8,2.80993593]
[1762843230238,1.4092,3558.9,3558.8,2.80993593]
[1762843230420,2.0742,3558.9,3558.8,2.80993593]
[1762843232933,1.4092,3558.9,3558.8,2.80993593]
[1762843233162,1.4092,3558.9,3558.8,4.57526807]
[1762843233443,1e-08,3558.9,3558.8,4.57526807]
[1762843233804,1e-08,3558.9,3558.8,9.0070795]
[1762843234212,1e-08,3558.9,3558.8,9.4125835]
[1762843234448,0.002,3559.7,3559.2,3.21512413]
[1762843234600,0.002,3559.7,3559.6,8.50082784]
[1762843235539,0.002,3559.7,3559.6,4.06901641]
[1762843235745,0.4875,3559.7,3558.8,0.50562014]
[1762843235904,0.4855,3559.5,3559.1,2.80964968]
[1762843236099,0.4874,3559.7,3559.2,0.59004687]
[1762843236341,0.665,3559.6,3559.3,2.8095297]
[1762843236633,0.002,3559.7,3559.4,2.80945825]
[1762843236813,0.667,3559.7,3559.4,2.80945825]
[1762843237635,0.667,3559.7,3559.1,2.80964653]
[1762843237939,0.667,3559.7,3559.6,2.80930441]
[1762843238342,1.1525,3559.7,3559.6,2.80930441]
[1762843239309,0.4875,3559.7,3559.6,2.80930441]
[1762843240027,0.4875,3559.7,3559.5,2.80937405]
[1762843240840,0.4855,3559.6,3559.0,5.69152343]
[1762843241043,0.4855,3559.6,3559.5,2.80938334]
[1762843241241,0.002,3559.7,3559.1,0.61971436]
[1762843241431,0.002,3559.7,3559.5,2.80936154]
[1762843243406,0.002,3559.7,3559.4,2.80944389]
[1762843243601,0.002,3559.7,3559.5,2.8093817]
[1762843243907,0.002,3559.7,3559.6,2.80930441]
[1762843244138,0.665,3559.7,3559.6,2.80930441]
[1762843246647,0.002,3559.7,3559.6,3.65497777]
[1762843246810,0.002,3559.7,3559.6,7.0750998]
[1762843249153,0.002,3559.7,3559.6,8.3348118]
[1762843252785,0.002,3559.7,3559.6,8.73293482]
[1762843255256,0.002,3559.7,3559.6,8.3348118]
[1762843255468,0.01,3560.9,3560.8,2.80835767]
[1762843255652,0.01,3560.9,3560.8,7.4881917]
[1762843257190,1.1501,3560.9,3560.8,1.259712]
[1762843258385,1.1501,3560.9,3560.8,4.06806967]
[1762843258684,1.1501,3560.9,3560.6,2.80851169]
[1762843258886,0.4799,3560.7,3560.6,4.06822369]
[1762843259803,0.946,3560.7,3560.6,4.06822741]
[1762843259978,0.946,3560.7,3560.6,1.259712]
[1762843260362,0.946,3560.7,3560.5,2.80859091]
[1762843260567,0.4799,3560.6,3560.5,4.06830291]
[1762843261481,0.2041,3560.9,3560.7,2.80843616]
[1762843261680,0.2041,3560.9,3560.6,2.80849375]
[1762843261885,0.4799,3560.7,3560.4,2.838]
[1762843262082,0.674,3559.7,3559.1,0.001]
[1762843262386,0.4661,3560.5,3559.6,3.42012203]
[1762843262684,0.4661,3560.5,3560.3,2.80874424]
[1762843262886,0.661,3560.6,3560.3,2.80874424]
[1762843263181,0.661,3560.6,3560.1,2.80890369]
[1762843263386,0.4799,3560.4,3559.7,1.6017242]
[1762843263688,0.4799,3560.4,3560.2,2.80877027]
[1762843264404,0.4799,3560.4,3560.3,2.80875207]
[1762843265572,0.946,3560.4,3560.3,2.80875207]
[1762843266071,0.946,3560.4,3559.8,2.14367287]
[1762843266274,0.4799,3560.2,3559.8,2.14367287]
[1762843266576,0.1941,3559.9,3559.8,1.259712]
[1762843266782,0.674,3559.9,3559.8,2.80914658]
[1762843267098,1.1401,3559.9,3559.8,2.80914658]
[1762843267467,1.1401,3559.9,3559.2,1.919712]
[1762843267797,1.1401,3559.9,3559.6,2.80928668]
[1762843267798,0.946,3559.8,3559.6,2.80928668]
[1762843268152,0.946,3559.7,3559.3,2.8095412]
[1762843268465,0.946,3559.7,3559.6,2.80930441]
[1762843268802,0.4799,3559.7,3559.6,2.80930441]
[1762843269781,0.946,3559.7,3559.6,2.80930441]
[1762843269987,0.1941,3559.9,3559.7,2.8092199]
[1762843270189,0.4661,3559.8,3559.7,2.8092199]
[1762843270491,0.946,3559.8,3559.7,2.80922549]
[1762843271595,0.946,3559.8,3559.6,2.80929303]
[1762843271761,0.002,3560.4,3559.6,1.94765804]
[1762843271980,1.1251,3560.3,3560.0,2.80896835]
[1762843272494,0.4799,3560.1,3560.0,2.80896835]
[1762843272698,1.1251,3560.3,3560.1,2.80888018]
[1762843272888,1.1251,3560.3,3560.2,2.80883096]
[1762843273410,0.659,3560.3,3560.1,2.80888457]
[1762843273612,0.002,3560.4,3560.1,2.80888457]
[1762843273813,1.1271,3560.4,3560.1,2.80888457]
[1762843274110,0.002,3560.4,3560.3,2.80875207]
[1762843274502,0.4819,3560.4,3560.3,2.80875207]
[1762843275940,0.4819,3560.4,3559.7,2.80922549]
[1762843275941,0.948,3560.4,3559.7,2.80922549]
[1762843276146,0.4799,3559.7,3559.3,0.001]
[1762843276425,0.4799,3559.7,3559.6,2.80930441]
[1762843276822,0.1941,3559.9,3559.8,2.80914658]
[1762843277126,0.1941,3560.1,3559.9,2.80906767]
[1762843277298,0.1941,3560.1,3560.0,2.80898876]
[1762843277721,0.674,3560.1,3560.0,2.80898876]
[1762843278028,1.1401,3560.1,3560.0,2.80898876]
[1762843280628,0.674,3560.1,3560.0,2.80898876]
[1762843280830,0.002,3560.4,3560.3,4.06846407]
[1762843280990,0.002,3560.4,3560.3,4.72746407]
[1762843281195,0.002,3560.4,3560.3,4.18091459]
[1762843285001,0.002,3560.4,3560.3,7.91040207]
[1762843286133,0.002,3560.4,3560.3,6.53823955]
[1762843286304,0.002,3560.4,3560.3,7.79795155]
[1762843287690,0.4972,3560.4,3560.3,1.259712]
[1762843287896,0.9641,3560.4,3560.2,2.80878035]
[1762843288228,0.4952,3560.3,3560.2,2.80878035]
[1762843288429,0.9621,3560.3,3560.2,2.80878035]
[1762843289246,0.9621,3560.3,3560.1,2.8088839]
[1762843289415,0.9621,3560.2,3560.1,4.0685959]
[1762843289603,0.002,3560.4,3560.3,2.80875207]
[1762843290212,0.002,3560.4,3560.3,3.4964892]
[1762843290547,0.002,3560.4,3560.3,12.27346416]
[1762843290952,0.002,3560.4,3560.3,4.8144892]
[1762843301055,0.9641,3560.4,3560.3,3.46775207]
[1762843301223,0.9641,3560.4,3560.2,2.80882297]
[1762843301424,0.9641,3560.4,3559.9,2.81002156]
[1762843301425,0.4669,3560.3,3559.9,0.001]
[1762843301617,0.4952,3560.0,3559.9,0.001]
[1762843302048,0.9621,3560.0,3559.9,0.001]
[1762843302422,0.9621,3560.0,3559.9,2.81006767]
[1762843302624,0.9621,3560.0,3559.9,0.001]
[1762843302962,0.9621,3560.0,3559.9,4.06977967]
[1762843303259,0.9621,3560.0,3559.9,0.001]
[1762843304473,1.33918847,3560.0,3559.9,0.001]
[1762843305464,4.80517723,3560.0,3559.9,0.001]
[1762843305646,4.42808876,3560.0,3559.9,0.001]
[1762843306631,1.6191,3560.0,3559.9,0.001]
[1762843306839,4.42808876,3560.0,3559.9,0.001]
[1762843310372,4.42808876,3560.0,3558.4,0.001]
[1762843310373,0.4952,3559.0,3558.4,0.001]
[1762843310572,1.259712,3559.5,3558.4,0.001]
[1762843310573,2.81017282,3558.5,3558.4,0.001]
[1762843310865,1.6191,3558.5,3558.4,0.001]
[1762843311069,4.42927282,3558.5,3558.4,0.001]
[1762843311296,1.6191,3558.5,3558.4,0.001]
[1762843311433,1.78101,3558.5,3558.4,0.001]
[1762843312164,4.59118282,3558.5,3558.4,0.001]
[1762843316074,4.59018282,3558.5,3558.4,0.001]
[1762843318148,8.32583952,3558.5,3558.4,0.001]
[1762843318349,9.23134352,3558.5,3558.4,0.001]
[1762843318784,3.87758682,3558.5,3558.4,0.001]
[1762843318984,0.1882,3559.6,3558.5,1.259712]
[1762843319185,0.656,3559.1,3558.8,3.7356567]
[1762843319393,0.656,3559.1,3558.6,6.5500378]
[1762843319571,0.656,3559.1,3558.7,2.81001489]
[1762843319773,0.656,3559.1,3558.8,2.80991864]
[1762843320150,0.656,3559.1,3558.8,0.77617724]
[1762843320352,0.6689,3558.9,3558.4,0.001]
[1762843320587,0.4739,3558.5,3558.4,0.001]
[1762843320896,3.94607282,3558.5,3558.4,0.001]
[1762843321063,4.40267282,3558.5,3558.4,0.001]
[1762843321406,0.17815,3558.8,3558.4,2.81119799]
[1762843321613,0.195,3558.9,3558.5,2.81010331]
[1762843321775,0.662,3558.7,3558.4,0.001]
[1762843322475,1.1186,3558.7,3558.4,0.001]
[1762843323065,0.4739,3558.5,3558.4,0.001]
[1762843324388,0.9305,3558.5,3558.4,0.001]
[1762843324561,3.89992282,3558.5,3558.4,0.001]
[1762843325299,1.08975,3558.5,3558.4,0.001]
[1762843325606,3.89992282,3558.5,3558.4,0.001]
[1762843325811,4.30542682,3558.5,3558.4,0.001]
[1762843326105,8.54108352,3558.5,3558.4,0.001]
[1762843326309,4.80542682,3558.5,3558.4,0.001]
[1762843326869,1.08975,3558.5,3558.4,0.001]
[1762843327190,4.56092282,3558.5,3558.4,0.001]
[1762843330393,6.72613882,3558.5,3558.4,0.001]
[1762843338215,5.81963482,3558.5,3558.4,0.001]
[1762843338818,6.22513882,3558.5,3558.4,0.001]
[1762843339666,6.72513882,3558.5,3558.4,0.001]
[1762843342907,6.72513882,3558.5,3558.1,0.01]
[1762843343110,6.72513882,3558.5,3558.0,0.001]
[1762843343111,3.71599274,3558.1,3558.0,0.001]
[1762843343339,4.84889274,3558.1,3558.0,0.001]
[1762843343544,5.30549274,3558.1,3558.0,0.001]
[1762843344355,6.56520474,3558.1,3558.0,0.001]
[1762843344751,9.52720474,3558.1,3558.0,0.001]
[1762843344951,8.61884568,3558.1,3558.0,0.001]
[1762843345465,3.71630873,3557.7,3557.6,0.001]
[1762843345762,4.86640873,3557.7,3557.6,0.001]
[1762843345925,5.32490873,3557.7,3557.6,0.001]
[1762843347025,4.26040473,3557.7,3557.6,0.001]
[1762843347356,2.05364094,3558.1,3557.6,0.001]
[1762843347357,2.05364094,3558.1,3557.6,0.0053]
[1762843347524,2.81080473,3557.7,3557.6,0.0053]
[1762843347722,3.46980473,3557.7,3557.6,0.0053]
[1762843348125,2.81080473,3557.7,3557.6,0.001]
[1762843348327,3.46980473,3557.7,3557.6,0.001]
[1762843348936,0.659,3557.7,3557.6,0.0053]
[1762843350060,2.81070368,3557.9,3557.6,0.0053]
[1762843350391,2.8104306,3558.2,3557.7,0.0043]
[1762843350531,0.658,3558.1,3557.8,0.0043]
[1762843350735,3.4684948,3558.1,3557.8,0.0043]
[1762843350955,3.4684948,3558.1,3557.6,0.001]
[1762843351156,2.81074046,3557.8,3557.6,0.001]
[1762843351355,0.658,3557.7,3557.6,0.001]
[1762843351857,0.658,3557.7,3557.6,0.0053]
[1762843351858,3.46880473,3557.7,3557.6,0.0053]
[1762843352277,3.46880473,3557.7,3557.6,0.001]
[1762843356597,5.54635349,3557.7,3557.6,0.001]
[1762843356780,1.28594876,3557.7,3557.6,0.0053]
[1762843356955,3.46780473,3557.7,3557.6,0.0053]
[1762843357669,3.46780473,3557.7,3557.6,0.001]
[1762843357979,3.95890473,3557.7,3557.6,0.001]
[1762843360400,3.46780473,3557.7,3557.6,0.0053]
[1762843361699,2.81034607,3558.3,3557.6,0.0053]
[1762843361901,2.81049324,3558.1,3557.8,0.0043]
[1762843362064,0.657,3558.0,3557.8,0.0043]
[1762843362502,0.657,3558.0,3557.9,0.0043]
[1762843365505,0.656,3558.0,3557.9,2.81922021]
[1762843365693,0.656,3558.0,3557.9,0.57442202]
[1762843366706,0.656,3558.0,3557.9,0.57012202]
[1762843367013,3.46656773,3558.0,3557.6,0.001]
[1762843367810,3.46658773,3558.0,3557.6,0.001]
[1762843367976,1.1145,3558.0,3557.6,0.001]
[1762843368523,2.81080473,3557.7,3557.6,0.001]
[1762843368811,3.46680473,3557.7,3557.6,0.001]
[1762843369732,0.656,3557.7,3557.6,0.001]
[1762843370219,3.95790473,3557.7,3557.6,0.001]
[1762843370377,4.41640473,3557.7,3557.6,0.001]
[1762843371522,5.13911644,3557.7,3557.6,0.001]
[1762843372216,5.63911644,3557.7,3557.6,0.001]
[1762843374306,6.04462044,3557.7,3557.6,0.001]
[1762843374606,7.30433244,3557.7,3557.6,0.001]
[1762843377315,11.0286896,3557.7,3557.6,0.001]
[1762843377516,10.72948236,3557.7,3557.6,0.001]
[1762843378721,7.30433244,3557.7,3557.6,0.001]
[1762843387447,0.856404,3557.2,3556.8,0.001]
[1762843387658,4.35274092,3556.9,3556.8,0.001]
[1762843387859,4.84564092,3556.9,3556.8,0.001]
[1762843388265,2.81143692,3556.9,3556.8,0.001]
[1762843388425,3.46643692,3556.9,3556.8,0.0053]
[1762843388612,0.4929,3557.6,3556.8,0.0096]
[1762843388949,2.81143692,3556.9,3556.8,0.0053]
[1762843389161,3.46643692,3556.9,3556.8,0.0096]
[1762843389328,3.46643692,3556.9,3556.8,0.0053]
[1762843390758,0.655,3556.9,3556.8,0.0053]
[1762843390914,3.46643692,3556.9,3556.8,0.0053]
[1762843394242,0.655,3556.9,3556.8,0.0053]
[1762843394439,3.46643692,3556.9,3556.8,0.0053]
[1762843394935,2.81143692,3556.9,3556.8,0.001]
[1762843395171,3.46643692,3556.9,3556.8,0.0053]
[1762843395482,0.655,3556.9,3556.8,0.0053]
[1762843395686,2.81143425,3557.0,3556.8,0.0053]
[1762843395842,3.46643692,3556.9,3556.8,0.0053]
[1762843396173,3.46643692,3556.9,3556.8,0.001]
[1762843396336,3.46643692,3556.9,3556.8,0.0053]
[1762843397975,0.655,3556.9,3556.8,0.0053]
[1762843398142,0.4949,3557.9,3556.8,0.66515852]
[1762843398343,0.655,3557.6,3557.1,3.73861751]
[1762843398685,3.46588441,3557.6,3557.1,3.73861751]
[1762843398870,3.46588441,3557.6,3557.5,0.0043]
[1762843399776,2.81113339,3557.3,3556.8,0.66085852]
[1762843399992,3.46622917,3557.2,3556.8,0.66085852]
[1762843400147,3.46622917,3557.2,3557.1,0.0043]
[1762843400998,2.81129279,3557.1,3556.8,0.001]
[1762843401167,2.81129279,3557.1,3556.8,0.0053]
[1762843401506,2.81129279,3557.1,3557.0,0.0043]
[1762843402196,3.46621831,3557.2,3557.0,0.0043]
[1762843402358,3.46621831,3557.2,3557.1,0.0043]
[1762843404052,0.655,3557.2,3556.8,0.001]
[1762843404983,2.81128433,3557.1,3556.8,0.001]
[1762843405384,2.81127885,3557.1,3556.8,0.001]
[1762843405585,2.81138262,3557.0,3556.8,0.001]
[1762843405786,3.46643692,3556.9,3556.8,0.001]
[1762843406167,3.46643692,3556.9,3556.8,0.0053]
[1762843406586,0.655,3556.9,3556.8,0.0053]
[1762843409290,2.8110733,3557.4,3556.8,0.0053]
[1762843409480,0.655,3557.3,3557.0,0.0043]
[1762843409791,0.655,3557.3,3556.8,0.001]
[1762843409792,0.4663,3556.9,3556.8,0.001]
[1762843409995,3.46643692,3556.9,3556.8,0.001]
[1762843410194,3.46643692,3556.9,3556.8,0.0096]
[1762843410195,0.655,3556.9,3556.8,0.0096]
[1762843410351,0.655,3556.9,3556.8,0.0053]
[1762843412218,0.405504,3557.5,3556.8,0.0053]
[1762843412513,2.81128161,3557.1,3556.8,0.0053]
[1762843412717,0.655,3557.0,3556.8,0.0053]
[1762843412926,0.655,3557.0,3556.8,0.001]
[1762843413129,0.655,3557.0,3556.9,0.0043]
[1762843416631,0.002,3557.2,3556.9,3.74721751]
[1762843416788,0.002,3557.2,3557.1,0.0043]
[1762843416990,0.296,3557.2,3557.1,0.0043]
[1762843417300,0.296,3557.2,3557.1,0.0086]
[1762843418298,0.296,3557.2,3557.1,0.0043]
[1762843419255,0.296,3557.2,3557.0,0.37763327]
[1762843419256,0.296,3557.2,3556.8,0.001]
[1762843419603,0.296,3557.2,3557.1,0.0043]
[1762843421015,0.657,3557.2,3557.1,0.0043]
[1762843424048,0.002,3557.2,3557.1,0.0043]
[1762843424208,0.657,3557.2,3557.1,0.0043]
[1762843426019,0.657,3557.2,3556.9,3.73861751]
[1762843426720,0.657,3557.2,3557.1,0.0043]
[1762843427841,3.46822033,3557.2,3556.8,0.001]
[1762843428145,0.657,3557.2,3556.8,0.001]
[1762843428527,0.002,3557.2,3556.8,0.001]
[1762843428734,0.655,3557.1,3556.8,0.001]
[1762843429741,0.655,3557.1,3557.0,0.0043]
[1762843431343,0.655,3557.1,3556.9,3.73861751]
[1762843431843,0.655,3557.1,3557.0,0.0043]
[1762843432340,0.657,3557.1,3557.0,0.0043]
[1762843434073,0.657,3557.1,3556.9,0.001]
[1762843434935,0.4663,3557.0,3556.9,0.001]
[1762843435136,4.15311462,3557.0,3556.9,0.001]
[1762843437732,3.67131462,3557.0,3556.9,0.001]
[1762843438130,4.16171462,3557.0,3556.9,0.001]
[1762843440480,3.76805788,3557.0,3556.9,0.001]
[1762843446161,8.41217939,3557.0,3556.9,0.001]
[1762843449018,4.67356188,3557.0,3556.9,0.001]
[1762843456405,5.93327388,3557.0,3556.9,0.001]
[1762843459132,4.94287388,3557.0,3556.9,0.001]
[1762843459342,6.32458339,3557.0,3556.9,0.001]
[1762843459643,6.97858339,3557.0,3556.9,0.001]
[1762843463951,7.47858339,3557.0,3556.9,0.001]
[1762843465551,2.81206128,3556.2,3555.5,2.68373895]
[1762843465753,0.654,3556.1,3555.6,0.11261689]
[1762843465959,0.654,3556.0,3555.6,0.11261689]
[1762843466253,0.654,3555.9,3555.6,0.11261689]
[1762843466433,0.654,3555.9,3555.5,2.81253501]
[1762843467237,0.654,3555.9,3555.1,0.01]
[1762843467432,0.654,3555.9,3555.2,2.81278127]
[1762843467694,2.8123088,3555.8,3555.1,0.47978242]
[1762843467823,0.654,3555.9,3555.2,2.81277546]
[1762843468025,3.46624234,3555.9,3555.2,2.81277546]
[1762843468225,0.654,3555.9,3555.2,2.81275946]
[1762843468459,2.81231674,3555.8,3555.1,3.2926125]
[1762843468659,2.81243465,3555.7,3555.1,0.47978242]
[1762843468825,0.654,3555.6,3555.1,0.011]
[1762843469026,0.654,3555.6,3555.1,2.82384822]
[1762843470264,0.654,3555.6,3555.1,0.011]
[1762843471536,0.654,3555.5,3555.4,2.81256431]
[1762843471878,0.673,3556.8,3555.4,1.259712]
[1762843472046,0.385,3556.7,3556.2,2.811937]
[1762843472247,0.385,3556.6,3556.2,2.81197184]
[1762843472451,0.654,3556.5,3556.2,2.81197184]
[1762843472773,0.654,3556.5,3556.1,2.8120691]
[1762843472971,0.654,3556.5,3556.3,2.81184893]
[1762843473174,0.483,3556.2,3555.5,1.72849442]
[1762843473376,0.483,3556.2,3555.2,2.81270636]
[1762843473377,0.654,3556.1,3555.2,2.81270636]
[1762843473536,0.654,3556.1,3555.3,2.81268669]
[1762843473537,2.81219994,3556.0,3555.3,2.81268669]
[1762843473741,3.4660737,3556.1,3555.3,2.81268669]
[1762843474159,3.46608524,3556.1,3555.3,2.81268669]
[1762843474877,1.1288,3556.1,3555.1,0.011]
[1762843475080,2.81236991,3555.8,3555.1,0.011]
[1762843475252,0.654,3555.7,3555.1,0.011]
[1762843475580,0.4748,3556.0,3555.2,2.81278127]
[1762843475740,3.46623187,3555.9,3555.2,2.81278127]
[1762843475942,2.81244169,3555.7,3555.1,0.011]
[1762843476875,3.46624111,3555.9,3555.1,0.011]
[1762843477475,0.4748,3556.0,3555.1,0.011]
[1762843477476,0.654,3555.8,3555.1,0.011]
[1762843477678,0.654,3555.8,3555.3,2.81268968]
[1762843478263,0.654,3555.8,3555.3,2.81263566]
[1762843478794,0.654,3555.8,3555.3,2.81270216]
[1762843479826,0.654,3555.8,3555.2,0.34391122]
[1762843479975,0.654,3555.8,3555.1,0.011]
[1762843480190,2.81240156,3555.7,3555.1,0.011]
[1762843480481,0.654,3555.6,3555.1,0.011]
[1762843480687,0.654,3555.5,3555.3,2.81265071]
[1762843481219,0.654,3555.5,3555.3,2.81263619]
[1762843481422,0.654,3555.5,3555.3,3.71909675]
[1762843481723,0.84471706,3556.4,3555.3,4.36269978]
[1762843482012,2.81199978,3556.2,3555.5,2.81252235]
[1762843482194,0.654,3556.1,3555.5,2.81252235]
[1762843482377,0.654,3556.1,3555.3,6.24081368]
[1762843482580,0.654,3556.1,3555.4,2.81262305]
[1762843482774,1.1288,3556.1,3555.5,2.838]
[1762843482974,2.81214848,3556.0,3555.5,2.838]
[1762843483177,1.1288,3556.1,3555.5,2.838]
[1762843483524,0.4748,3556.0,3555.5,2.838]
[1762843483672,2.81228441,3555.9,3555.5,2.838]
[1762843484377,3.28697403,3556.0,3555.5,2.838]
[1762843484607,2.81222756,3555.9,3555.5,2.838]
[1762843484794,3.28702756,3555.9,3555.5,2.838]
[1762843485324,3.28703068,3555.9,3555.5,2.838]
[1762843485528,2.81223068,3555.9,3555.5,2.838]
[1762843485882,2.81227176,3555.9,3555.5,2.838]
[1762843486081,2.81242901,3555.7,3555.5,2.838]
[1762843486300,0.654,3555.6,3555.5,2.838]
[1762843486907,1.6118,3555.6,3555.5,2.838]
[1762843487228,2.81269866,3555.4,3555.1,0.011]
[1762843487593,2.81270328,3555.3,3555.1,0.011]
[1762843487823,0.654,3555.2,3555.1,0.011]
[1762843491098,1.137,3555.2,3555.1,0.011]
[1762843492094,3.94978127,3555.2,3555.1,0.011]
[1762843492399,4.8195594,3555.2,3555.1,0.011]
[1762843494413,2.00677813,3555.2,3555.1,0.011]
[1762843494614,4.42458127,3555.2,3555.1,0.011]
[1762843495232,1.6118,3555.2,3555.1,0.011]
[1762843495418,4.42458127,3555.2,3555.1,0.011]
[1762843496513,0.654,3555.2,3555.1,0.011]
[1762843500152,0.11264607,3555.8,3555.1,0.011]
[1762843500153,0.61074607,3555.8,3555.1,0.011]
[1762843500452,0.654,3555.7,3555.1,0.011]
[1762843500656,3.05364604,3555.6,3555.1,0.011]
[1762843500846,2.81270841,3555.3,3555.1,0.011]
[1762843501038,4.36298527,3555.2,3555.1,0.011]
[1762843501213,4.86108527,3555.2,3555.1,0.011]
[1762843501419,6.80253765,3555.2,3555.1,0.011]
[1762843505519,6.91520466,3555.2,3555.1,0.011]
[1762843507215,8.17491666,3555.2,3555.1,0.011]
[1762843508856,11.91892868,3555.2,3555.1,0.011]
[1762843513588,11.91892868,3555.2,3554.7,0.001]
[1762843513589,3.21860178,3554.8,3554.7,0.001]
[1762843513787,10.0117258,3554.8,3554.7,0.001]
[1762843513987,4.97847206,3554.6,3554.5,0.001]
[1762843514188,3.21891835,3554.4,3554.3,0.001]
[1762843514492,3.21891835,3554.4,3554.1,0.01]
[1762843514493,3.21907667,3554.2,3554.1,0.01]
[1762843514658,14.64026582,3554.2,3554.1,0.01]
[1762843514852,15.13836582,3554.2,3554.1,0.01]
[1762843515252,11.50706144,3554.2,3554.1,0.01]
[1762843517154,11.50706144,3554.2,3554.1,1e-08]
[1762843517384,15.90407346,3554.2,3554.1,1e-08]
[1762843518490,15.79136582,3554.2,3554.1,1e-08]
[1762843520385,15.79136582,3554.2,3554.1,0.00100001]
[1762843521787,15.79136582,3554.2,3553.7,0.001]
[1762843521788,4.97910535,3553.8,3553.7,0.001]
[1762843521989,14.30182939,3553.8,3553.7,0.001]
[1762843522167,10.55781737,3553.8,3553.7,0.001]
[1762843522570,14.30182939,3553.8,3553.7,0.001]
[1762843523005,2.81420611,3553.4,3553.3,0.001]
[1762843523173,5.47028051,3553.2,3553.1,1e-08]
[1762843523362,9.21429253,3553.2,3553.1,1e-08]
[1762843523564,9.71239253,3553.2,3553.1,1e-08]
[1762843524604,10.36539253,3553.2,3553.1,1e-08]
[1762843525257,14.10940455,3553.2,3553.1,1e-08]
[1762843525457,15.88597521,3553.2,3553.1,1e-08]
[1762843528607,15.23297521,3553.2,3553.1,1e-08]
[1762843528777,15.88597521,3553.2,3553.1,1e-08]
[1762843529577,15.99874608,3553.2,3553.1,1e-08]
[1762843530510,3.2206608,3552.2,3552.1,0.01]
[1762843530698,10.05008482,3552.2,3552.1,0.01]
[1762843530876,10.54788482,3552.2,3552.1,0.01]
[1762843531077,12.25858084,3552.2,3552.1,0.01]
[1762843531491,8.51456882,3552.2,3552.1,0.01]
[1762843532315,8.51456882,3552.2,3552.1,1e-08]
[1762843533911,3.72145353,3551.2,3551.1,0.01]
[1762843534086,8.61046555,3551.2,3551.1,0.01]
[1762843534283,8.11846555,3551.2,3551.1,0.01]
[1762843535282,8.61046555,3551.2,3551.1,0.01]
[1762843535494,10.62529881,3551.2,3551.1,0.01]
[1762843535691,11.88501081,3551.2,3551.1,0.01]
[1762843536214,11.88501081,3551.2,3551.1,1e-08]
[1762843537324,11.88501081,3551.2,3551.1,0.00100001]
[1762843537627,3.72224671,3550.2,3550.1,0.01]
[1762843537839,8.11925873,3550.2,3550.1,0.01]
[1762843538140,8.11925873,3550.2,3550.1,0.013]
[1762843538429,9.87097073,3550.2,3550.1,0.01]
[1762843538615,10.36877073,3550.2,3550.1,0.01]
[1762843539404,9.87097073,3550.2,3550.1,0.01]
[1762843540115,10.8725713,3550.2,3550.1,0.01]
[1762843540315,3.72304034,3549.2,3549.1,0.01]
[1762843540529,8.87976436,3549.2,3549.1,0.01]
[1762843540730,9.37976436,3549.2,3549.1,0.01]
[1762843541296,10.36956436,3549.2,3549.1,0.01]
[1762843541495,11.68826464,3549.2,3549.1,0.01]
[1762843542292,10.69846464,3549.2,3549.1,0.01]
[1762843542597,11.68826464,3549.2,3549.1,0.01]
[1762843548066,2.81734905,3549.5,3549.1,0.013]
[1762843548365,4.23601202,3549.2,3549.1,0.01]
[1762843548551,10.37056436,3549.2,3549.1,0.01]
[1762843548754,10.37056436,3549.2,3549.1,1e-08]
[1762843548755,15.43337139,3549.2,3549.1,1e-08]
[1762843548938,15.87362074,3549.2,3549.1,1e-08]
[1762843549148,15.54625811,3549.2,3549.1,1e-08]
[1762843549356,10.69955937,3549.2,3549.1,1e-08]
[1762843549673,8.97526036,3549.2,3549.1,0.00300001]
[1762843549854,9.38076436,3549.2,3549.1,1e-08]
[1762843550058,9.38076436,3549.2,3549.1,0.00300001]
[1762843550674,5.63675234,3549.2,3549.1,0.00300001]
[1762843550876,8.72676436,3549.2,3549.1,1e-08]
[1762843551080,11.52497937,3549.2,3549.1,1e-08]
[1762843551939,10.53517937,3549.2,3549.1,1e-08]
[1762843552354,0.4978,3550.4,3549.1,0.00300001]
[1762843552556,4.24401202,3549.7,3549.3,0.003]
[1762843552756,3.22304034,3549.2,3549.1,1e-08]
[1762843552978,8.12105236,3549.2,3549.1,1e-08]
[1762843553187,8.12105236,3549.2,3549.1,0.00300001]
[1762843555494,4.37704034,3549.2,3549.1,0.00300001]
[1762843555698,4.37704034,3549.2,3549.1,0.00400001]
[1762843555895,0.654,3549.2,3549.1,0.00700001]
[1762843556094,0.656,3549.2,3549.1,0.00700001]
[1762843556793,3.47353634,3549.2,3549.1,0.00700001]
[1762843557585,3.47353634,3549.2,3549.1,0.00100001]
[1762843557929,10.17837072,3549.2,3549.1,0.00100001]
[1762843558200,9.52437072,3549.2,3549.1,0.00100001]
[1762843558364,10.17837072,3549.2,3549.1,0.00100001]
[1762843558988,10.65577072,3549.2,3549.1,0.00100001]
[1762843559715,14.88798274,3549.2,3549.1,0.00100001]
[1762843559883,3.72335792,3548.8,3548.7,0.001]